fUST/lending_fUST_20240918
["ID","MTS","AMOUNT","RATE_DAILY","PERIOD"]
[338460083,1726657847558,-500.0,0.00019178,2]
[338460084,1726657847569,-500.0,0.00019178,2]
[338460085,1726657847579,-1153.87,0.00019178,2]
[338460086,1726657847589,-2086.01,0.00019178,2]
[338460087,1726657847599,-2548.5,0.00019178,2]
[338460088,1726657847609,-615.96,0.00019178,2]
[338460089,1726657847620,-500.0,0.00019178,2]
[338460090,1726657847630,-500.0,0.00019178,2]
[338460091,1726657847641,-2350.3,0.00019178,2]
[338460092,1726657847652,-500.0,0.00019178,2]
[338460093,1726657847662,-151.0,0.00019178,2]
[338460094,1726657847673,-172.937654,0.00019178,2]
[338460095,1726657847684,-500.0,0.00019178,2]
[338460096,1726657847695,-500.0,0.00019178,2]
[338460097,1726657847706,-500.0,0.00019178,2]
[338460098,1726657847715,-500.0,0.00019178,2]
[338460099,1726657847725,-151.0,0.00019178,2]
[338460100,1726657847736,-151.0,0.00019178,2]
[338460101,1726657847746,-1016.51,0.00019178,2]
[338460102,1726657847757,-500.0,0.00019178,2]
[338460103,1726657847767,-994.77,0.00019178,2]
[338460104,1726657847779,-500.0,0.00019178,2]
[338460105,1726657847790,-500.0,0.00019178,2]
[338460106,1726657847801,-500.0,0.00019178,2]
[338460107,1726657847813,-229.30462457,0.00019178,2]
[338460108,1726657847824,-571.04,0.00019178,2]
[338460109,1726657847834,-2600.04625484,0.00019178,2]
[338460110,1726657848244,-586.748768,0.00019178,2]
[338460113,1726658038760,1330.0,0.0002051,120]
[338460156,1726659032213,-6507.5144214,0.00017918,2]
[338460157,1726659032223,-171.209008,0.00018124,2]
[338460158,1726659032233,-30.12358771,0.00018281,2]
[338460195,1726659038248,-141.08542029,0.00018281,2]
[338460196,1726659038260,-500.0,0.00018433,2]
[338460197,1726659038271,-171.209008,0.00018439,2]
[338460198,1726659038282,-171.209008,0.00018596,2]
[338460199,1726659038293,-154.0899291,0.000186,2]
[338460200,1726659038302,-171.209008,0.00018754,2]
[338460201,1726659038313,-171.209008,0.00018911,2]
[338460202,1726659038323,-300.0,0.00019047,2]
[338460203,1726659038333,-300.0,0.00019047,2]
[338460204,1726659038343,-3328.91593787,0.00019048,2]
[338460205,1726659038352,-1000.0,0.00019068,2]
[338460206,1726659038361,-171.209008,0.00019068,2]
[338460207,1726659038371,-896.7179718,0.00019078,2]
[338460208,1726659038380,-2101.34902288,0.00019078,2]
[338460209,1726659038390,-192.21,0.00019119,3]
[338460210,1726659038400,-1441.30764285,0.00019127,2]
[338460211,1726659038411,-175.64143833,0.00019128,2]
[338460212,1726659038420,-500.0,0.00019128,2]
[338460213,1726659038430,-495.5632235,0.00019128,2]
[338460214,1726659038439,-500.0,0.00019128,2]
[338460215,1726659038449,-500.0,0.00019128,2]
[338460216,1726659038458,-243.83373706,0.00019128,2]
[338460217,1726659038468,-500.0,0.00019128,2]
[338460218,1726659038477,-500.0,0.00019128,2]
[338460219,1726659038488,-194.46734777,0.00019128,2]
[338460220,1726659038497,-500.0,0.00019128,2]
[338460221,1726659038507,-500.0,0.00019128,2]
[338460222,1726659038517,-500.0,0.00019128,2]
[338460223,1726659038527,-500.0,0.00019128,2]
[338460224,1726659038538,-500.0,0.00019128,2]
[338460225,1726659038551,-500.0,0.00019128,2]
[338460226,1726659038564,-335.52431572,0.00019128,2]
[338460227,1726659038574,-500.0,0.00019128,2]
[338460228,1726659038583,-500.0,0.00019128,2]
[338460229,1726659038592,-500.0,0.00019128,2]
[338460230,1726659038601,-500.0,0.00019128,2]
[338460231,1726659038610,-500.0,0.00019128,2]
[338460232,1726659038620,-500.0,0.00019128,2]
[338460233,1726659038629,-500.0,0.00019128,2]
[338460234,1726659038638,-548.5304533,0.00019128,2]
[338460235,1726659038647,-500.0,0.00019128,2]
[338460236,1726659038657,-500.0,0.00019128,2]
[338460237,1726659038667,-500.0,0.00019128,2]
[338460238,1726659038676,-500.0,0.00019128,2]
[338460239,1726659038685,-500.0,0.00019128,2]
[338460240,1726659038693,-234.867021,0.00019128,2]
[338460241,1726659038703,-331858.95997,0.00019129,3]
[338460242,1726659038712,-323486.43398396,0.00019129,3]
[338460243,1726659038724,-10494.23493169,0.00019129,3]
[338460245,1726659040341,-132578.70471835,0.00019129,3]
[338460246,1726659040353,-2977.13514684,0.0001915,2]
[338460247,1726659040365,-500.38961539,0.00019173,2]
[338460248,1726659040376,-500.92865773,0.00019173,2]
[338460249,1726659040387,-500.0,0.00019173,2]
[338460250,1726659040398,-500.48891412,0.00019173,2]
[338460251,1726659040408,-500.0,0.00019173,2]
[338460252,1726659040419,-500.76551568,0.00019173,2]
[338460253,1726659040429,-591.02249132,0.00019173,2]
[338460254,1726659040439,-159.9027995,0.00019173,2]
[338460255,1726659040449,-360.07202762,0.00019173,2]
[338460256,1726659040460,-513.32263156,0.00019173,2]
[338460257,1726659040473,-500.4431137,0.00019173,2]
[338460258,1726659040483,-254.69698023,0.00019173,2]
[338460259,1726659040494,-500.49163467,0.00019173,2]
[338460260,1726659040506,-500.0,0.00019173,2]
[338460261,1726659040516,-500.35776297,0.00019173,2]
[338460262,1726659040526,-500.0,0.00019173,2]
[338460263,1726659040535,-500.0,0.00019173,2]
[338460264,1726659040546,-160.04022025,0.00019173,2]
[338460265,1726659040560,-160.11335754,0.00019173,2]
[338460266,1726659040571,-500.37104256,0.00019173,2]
[338460267,1726659040581,-500.0,0.00019173,2]
[338460268,1726659040593,-200.91528279,0.00019173,2]
[338460269,1726659040604,-500.50555096,0.00019173,2]
[338460270,1726659040614,-522.25634702,0.00019173,2]
[338460271,1726659040625,-500.0,0.00019173,2]
[338460272,1726659040635,-500.38098052,0.00019173,2]
[338460273,1726659040648,-500.0,0.00019173,2]
[338460274,1726659040658,-500.0,0.00019173,2]
[338460275,1726659040668,-500.0,0.00019173,2]
[338460276,1726659040679,-500.0,0.00019173,2]
[338460277,1726659040688,-500.0,0.00019173,2]
[338460278,1726659040698,-500.0,0.00019173,2]
[338460279,1726659040708,-150.01,0.00019177,2]
[338460280,1726659040718,-5648.12192009,0.00019177,2]
[338460281,1726659040728,-5994.72316835,0.00019178,5]
[338460282,1726659040737,-3119.27730619,0.00019178,5]
[338460283,1726659040746,-151.0,0.00019178,2]
[338460284,1726659040756,-155.461562,0.00019178,2]
[338460285,1726659040768,-151.491314,0.00019178,2]
[338460286,1726659040778,-156.29469,0.00019178,2]
[338460287,1726659041007,-154.795383,0.00019178,2]
[338460288,1726659041017,-500.0,0.00019178,2]
[338460289,1726659041026,-500.0,0.00019178,2]
[338460290,1726659041035,-151.0,0.00019178,2]
[338460291,1726659041045,-500.0,0.00019178,2]
[338460292,1726659041054,-151.0,0.00019178,2]
[338460293,1726659041064,-151.0,0.00019178,2]
[338460294,1726659041074,-500.0,0.00019178,2]
[338460295,1726659041084,-500.0,0.00019178,2]
[338460296,1726659041093,-500.0,0.00019178,2]
[338460297,1726659041103,-500.0,0.00019178,2]
[338460298,1726659041112,-500.0,0.00019178,2]
[338460299,1726659041122,-818.34,0.00019178,2]
[338460300,1726659041131,-500.0,0.00019178,2]
[338460301,1726659041140,-500.0,0.00019178,2]
[338460302,1726659041150,-500.0,0.00019178,2]
[338460303,1726659041159,-500.0,0.00019178,2]
[338460304,1726659041169,-500.0,0.00019178,2]
[338460305,1726659041179,-500.0,0.00019178,2]
[338460306,1726659041189,-500.0,0.00019178,2]
[338460307,1726659041199,-500.0,0.00019178,2]
[338460308,1726659041209,-500.0,0.00019178,2]
[338460309,1726659041218,-500.0,0.00019178,2]
[338460310,1726659041230,-500.0,0.00019178,2]
[338460311,1726659041247,-500.0,0.00019178,2]
[338460312,1726659041256,-500.0,0.00019178,2]
[338460313,1726659041265,-2059.16,0.00019178,2]
[338460314,1726659041275,-500.0,0.00019178,2]
[338460315,1726659041284,-500.0,0.00019178,2]
[338460316,1726659041294,-500.0,0.00019178,2]
[338460317,1726659041304,-1451.08134,0.00019178,2]
[338460318,1726659041314,-500.0,0.00019178,2]
[338460319,1726659041323,-1451.08134,0.00019178,2]
[338460320,1726659041333,-500.0,0.00019178,2]
[338460321,1726659041342,-500.0,0.00019178,2]
[338460322,1726659041352,-500.0,0.00019178,2]
[338460323,1726659041363,-500.0,0.00019178,2]
[338460324,1726659041373,-500.0,0.00019178,2]
[338460325,1726659041383,-511.53445351,0.00019178,2]
[338460326,1726659041392,-500.0,0.00019178,2]
[338460327,1726659041403,-500.0,0.00019178,2]
[338460328,1726659041414,-500.0,0.00019178,2]
[338460329,1726659041424,-1314.23,0.00019178,2]
[338460330,1726659041434,-572.89102883,0.00019178,2]
[338460331,1726659041443,-151.0,0.00019178,2]
[338460332,1726659041454,-500.0,0.00019178,2]
[338460333,1726659041463,-500.0,0.00019178,2]
[338460334,1726659041475,-507.05187652,0.00019178,2]
[338460335,1726659041486,-500.0,0.00019178,2]
[338460336,1726659041497,-500.0,0.00019178,2]
[338460337,1726659041507,-500.0,0.00019178,2]
[338460338,1726659041517,-151.0,0.00019178,2]
[338460339,1726659041526,-151.0,0.00019178,2]
[338460340,1726659041537,-500.0,0.00019178,2]
[338460341,1726659041551,-227.97090615,0.00019178,2]
[338460342,1726659041562,-500.0,0.00019178,2]
[338460343,1726659041572,-500.0,0.00019178,2]
[338460344,1726659041582,-500.0,0.00019178,2]
[338460345,1726659041591,-520.25,0.00019178,2]
[338460346,1726659041601,-500.0,0.00019178,2]
[338460347,1726659041610,-500.0,0.00019178,2]
[338460348,1726659041619,-500.0,0.00019178,2]
[338460349,1726659041629,-500.0,0.00019178,2]
[338460350,1726659041643,-500.0,0.00019178,2]
[338460351,1726659041653,-500.0,0.00019178,2]
[338460352,1726659041663,-1177.84,0.00019178,2]
[338460353,1726659041674,-500.0,0.00019178,2]
[338460354,1726659041684,-500.0,0.00019178,2]
[338460355,1726659041694,-500.0,0.00019178,2]
[338460356,1726659041703,-500.0,0.00019178,2]
[338460357,1726659041713,-500.0,0.00019178,2]
[338460358,1726659041722,-500.0,0.00019178,2]
[338460359,1726659041732,-500.0,0.00019178,2]
[338460360,1726659041743,-500.0,0.00019178,2]
[338460361,1726659041752,-500.0,0.00019178,2]
[338460362,1726659041761,-500.0,0.00019178,2]
[338460363,1726659041770,-500.0,0.00019178,2]
[338460364,1726659041779,-500.0,0.00019178,2]
[338460365,1726659041788,-500.0,0.00019178,2]
[338460366,1726659041798,-500.0,0.00019178,2]
[338460367,1726659041807,-500.0,0.00019178,2]
[338460368,1726659041816,-500.0,0.00019178,2]
[338460369,1726659041826,-500.0,0.00019178,2]
[338460370,1726659041835,-500.0,0.00019178,2]
[338460371,1726659041844,-500.0,0.00019178,2]
[338460372,1726659041854,-500.0,0.00019178,2]
[338460373,1726659041864,-649.43499826,0.00019178,2]
[338460374,1726659041873,-500.0,0.00019178,2]
[338460375,1726659041883,-500.0,0.00019178,2]
[338460376,1726659041894,-500.0,0.00019178,2]
[338460377,1726659041905,-722.95,0.00019178,2]
[338460378,1726659041916,-1728.32,0.00019178,2]
[338460379,1726659041929,-1028.42,0.00019178,2]
[338460380,1726659041939,-1763.37,0.00019178,2]
[338460381,1726659041949,-500.0,0.00019178,2]
[338460382,1726659041960,-500.0,0.00019178,2]
[338460383,1726659041970,-2073.95,0.00019178,2]
[338460384,1726659041981,-896.22,0.00019178,2]
[338460385,1726659041994,-523.09,0.00019178,2]
[338460386,1726659042003,-500.0,0.00019178,2]
[338460387,1726659042014,-500.0,0.00019178,2]
[338460388,1726659042025,-500.0,0.00019178,2]
[338460389,1726659042037,-500.0,0.00019178,2]
[338460390,1726659042048,-500.0,0.00019178,2]
[338460391,1726659042059,-500.0,0.00019178,2]
[338460392,1726659042070,-500.0,0.00019178,2]
[338460393,1726659042081,-500.0,0.00019178,2]
[338460394,1726659042092,-938.43,0.00019178,2]
[338460395,1726659042104,-500.0,0.00019178,2]
[338460396,1726659042115,-500.0,0.00019178,2]
[338460397,1726659042125,-1304.79,0.00019178,2]
[338460398,1726659042134,-500.0,0.00019178,2]
[338460399,1726659042146,-500.0,0.00019178,2]
[338460400,1726659042156,-541.99,0.00019178,2]
[338460401,1726659042166,-223.49469264,0.00019178,2]
[338460402,1726659042177,-500.0,0.00019178,2]
[338460403,1726659042187,-230.29370128,0.00019178,2]
[338460404,1726659042199,-500.0,0.00019178,2]
[338460405,1726659042208,-506.2982813,0.00019178,2]
[338460406,1726659042218,-500.0,0.00019178,2]
[338460407,1726659042227,-925.93,0.00019178,2]
[338460408,1726659042237,-622.71,0.00019178,2]
[338460409,1726659042246,-500.0,0.00019178,2]
[338460410,1726659042255,-500.0,0.00019178,2]
[338460411,1726659042264,-528.48,0.00019178,2]
[338460412,1726659042274,-755.63,0.00019178,2]
[338460413,1726659042283,-248.80975726,0.00019178,2]
[338460414,1726659042293,-500.0,0.00019178,2]
[338460415,1726659042303,-500.0,0.00019178,2]
[338460416,1726659042313,-500.0,0.00019178,2]
[338460417,1726659042324,-500.0,0.00019178,2]
[338460418,1726659042334,-500.0,0.00019178,2]
[338460419,1726659042345,-500.0,0.00019178,2]
[338460420,1726659042355,-500.0,0.00019178,2]
[338460421,1726659042364,-500.0,0.00019178,2]
[338460422,1726659042373,-500.0,0.00019178,2]
[338460423,1726659042382,-500.0,0.00019178,2]
[338460424,1726659042392,-1447.85,0.00019178,2]
[338460425,1726659042401,-500.0,0.00019178,2]
[338460426,1726659042412,-534.77671542,0.00019178,2]
[338460427,1726659042421,-1243.46,0.00019178,2]
[338460428,1726659042430,-504.26,0.00019178,2]
[338460429,1726659042439,-500.0,0.00019178,2]
[338460430,1726659042449,-500.0,0.00019178,2]
[338460431,1726659042459,-500.0,0.00019178,2]
[338460432,1726659042469,-500.0,0.00019178,2]
[338460433,1726659042478,-500.0,0.00019178,2]
[338460434,1726659042487,-500.0,0.00019178,2]
[338460435,1726659042497,-500.0,0.00019178,2]
[338460436,1726659042507,-2538.55,0.00019178,2]
[338460437,1726659042516,-500.0,0.00019178,2]
[338460438,1726659042525,-1045.29,0.00019178,2]
[338460439,1726659042535,-500.0,0.00019178,2]
[338460440,1726659042544,-500.0,0.00019178,2]
[338460441,1726659042559,-536.47,0.00019178,2]
[338460442,1726659042570,-530.46738935,0.00019178,2]
[338460443,1726659042581,-529.26445904,0.00019178,2]
[338460444,1726659042591,-500.0,0.00019178,2]
[338460445,1726659042601,-563.94,0.00019178,2]
[338460446,1726659042613,-151.0,0.00019178,2]
[338460447,1726659042623,-151.0,0.00019178,2]
[338460448,1726659042632,-617.01864428,0.00019178,2]
[338460449,1726659042645,-500.0,0.00019178,2]
[338460450,1726659042655,-1181.86,0.00019178,2]
[338460451,1726659042665,-500.0,0.00019178,2]
[338460452,1726659042676,-500.0,0.00019178,2]
[338460455,1726659042688,-546.82,0.00019178,2]
[338460456,1726659042699,-500.0,0.00019178,2]
[338460457,1726659042708,-500.0,0.00019178,2]
[338460458,1726659042719,-552.23,0.00019178,2]
[338460459,1726659042728,-151.0,0.00019178,2]
[338460460,1726659042737,-151.0,0.00019178,2]
[338460461,1726659042747,-500.0,0.00019178,2]
[338460463,1726659042756,-500.0,0.00019178,2]
[338460464,1726659042766,-151.0,0.00019178,2]
[338460466,1726659042775,-241.362484,0.00019178,2]
[338460467,1726659042784,-151.0,0.00019178,2]
[338460468,1726659042793,-151.0,0.00019178,2]
[338460469,1726659042803,-500.0,0.00019178,2]
[338460471,1726659042812,-195.58183072,0.00019178,2]
[338460473,1726659042822,-2122.47,0.00019178,2]
[338460475,1726659042832,-500.0,0.00019178,2]
[338460476,1726659042842,-500.0,0.00019178,2]
[338460478,1726659042851,-500.0,0.00019178,2]
[338460481,1726659042860,-151.0,0.00019178,2]
[338460484,1726659042870,-500.0,0.00019178,2]
[338460486,1726659042879,-151.0,0.00019178,2]
[338460489,1726659042888,-512.28,0.00019178,2]
[338460491,1726659042898,-500.0,0.00019178,2]
[338460493,1726659042907,-500.0,0.00019178,2]
[338460496,1726659042917,-676.35,0.00019178,2]
[338460499,1726659042926,-858.85,0.00019178,2]
[338460501,1726659042936,-1047.28,0.00019178,2]
[338460503,1726659042945,-152.653402,0.00019178,2]
[338460505,1726659042954,-500.0,0.00019178,2]
[338460507,1726659042963,-555.20290379,0.00019178,2]
[338460509,1726659042974,-500.0,0.00019178,2]
[338460511,1726659042984,-517.59,0.00019178,2]
[338460513,1726659042993,-3902.89,0.00019178,2]
[338460515,1726659043002,-500.0,0.00019178,2]
[338460516,1726659043011,-500.0,0.00019178,2]
[338460517,1726659043020,-500.0,0.00019178,2]
[338460518,1726659043029,-500.0,0.00019178,2]
[338460519,1726659043038,-500.0,0.00019178,2]
[338460520,1726659043048,-500.0,0.00019178,2]
[338460521,1726659043058,-500.0,0.00019178,2]
[338460522,1726659043067,-504.17506452,0.00019178,2]
[338460523,1726659043077,-151.0,0.00019178,2]
[338460524,1726659043086,-500.0,0.00019178,2]
[338460525,1726659043095,-151.0,0.00019178,2]
[338460526,1726659043105,-500.0,0.00019178,2]
[338460527,1726659043114,-500.0,0.00019178,2]
[338460528,1726659043124,-500.0,0.00019178,2]
[338460529,1726659043136,-1123.68,0.00019178,2]
[338460530,1726659043146,-151.291991,0.00019178,2]
[338460531,1726659043157,-151.291991,0.00019178,2]
[338460532,1726659043166,-500.0,0.00019178,2]
[338460533,1726659043178,-500.0,0.00019178,2]
[338460534,1726659043189,-500.0,0.00019178,2]
[338460535,1726659043201,-671.23,0.00019178,2]
[338460536,1726659043211,-151.291991,0.00019178,2]
[338460537,1726659043221,-151.291991,0.00019178,2]
[338460538,1726659043233,-612.57,0.00019178,2]
[338460539,1726659043244,-636.98,0.00019178,2]
[338460540,1726659043254,-500.0,0.00019178,2]
[338460541,1726659043264,-500.0,0.00019178,2]
[338460542,1726659043274,-500.0,0.00019178,2]
[338460543,1726659043286,-815.38,0.00019178,2]
[338460544,1726659043295,-626.57,0.00019178,2]
[338460545,1726659043305,-520.1332882,0.00019178,2]
[338460546,1726659043315,-500.0,0.00019178,2]
[338460547,1726659043325,-1139.04,0.00019178,2]
[338460548,1726659043335,-1344.85,0.00019178,2]
[338460549,1726659043344,-720.68,0.00019178,2]
[338460550,1726659043355,-500.0,0.00019178,2]
[338460551,1726659043364,-500.0,0.00019178,2]
[338460552,1726659043373,-500.0,0.00019178,2]
[338460553,1726659043383,-500.0,0.00019178,2]
[338460554,1726659043392,-500.0,0.00019178,2]
[338460555,1726659043402,-1147.05,0.00019178,2]
[338460556,1726659043412,-500.0,0.00019178,2]
[338460557,1726659043423,-500.0,0.00019178,2]
[338460558,1726659043434,-1068.84,0.00019178,2]
[338460559,1726659043444,-500.0,0.00019178,2]
[338460560,1726659043454,-500.0,0.00019178,2]
[338460561,1726659043463,-500.0,0.00019178,2]
[338460562,1726659043473,-500.0,0.00019178,2]
[338460563,1726659043483,-1735.12,0.00019178,2]
[338460564,1726659043494,-560.6,0.00019178,2]
[338460565,1726659043505,-500.0,0.00019178,2]
[338460566,1726659043516,-500.0,0.00019178,2]
[338460567,1726659043527,-804.64,0.00019178,2]
[338460568,1726659043537,-500.0,0.00019178,2]
[338460569,1726659043547,-500.0,0.00019178,2]
[338460570,1726659043561,-668.87,0.00019178,2]
[338460571,1726659043570,-500.0,0.00019178,2]
[338460572,1726659043580,-1217.35,0.00019178,2]
[338460573,1726659043589,-500.0,0.00019178,2]
[338460574,1726659043598,-779.76,0.00019178,2]
[338460575,1726659043607,-500.0,0.00019178,2]
[338460576,1726659043616,-1376.67,0.00019178,2]
[338460577,1726659043625,-546.17589861,0.00019178,2]
[338460578,1726659043634,-500.0,0.00019178,2]
[338460579,1726659043643,-500.0,0.00019178,2]
[338460580,1726659043652,-500.0,0.00019178,2]
[338460581,1726659043662,-500.0,0.00019178,2]
[338460582,1726659043670,-537.26774126,0.00019178,2]
[338460583,1726659043680,-517.71783702,0.00019178,2]
[338460584,1726659043689,-700.07,0.00019178,2]
[338460585,1726659043698,-762.5,0.00019178,2]
[338460586,1726659043707,-750.57,0.00019178,2]
[338460587,1726659043717,-500.0,0.00019178,2]
[338460588,1726659043727,-500.0,0.00019178,2]
[338460589,1726659043738,-500.0,0.00019178,2]
[338460590,1726659043748,-2522.26,0.00019178,2]
[338460591,1726659043758,-1167.42,0.00019178,2]
[338460592,1726659043767,-1655.38,0.00019178,2]
[338460593,1726659043777,-500.0,0.00019178,2]
[338460594,1726659043787,-500.0,0.00019178,2]
[338460595,1726659043796,-500.0,0.00019178,2]
[338460596,1726659043806,-952.81,0.00019178,2]
[338460597,1726659043815,-188.942496,0.00019178,2]
[338460598,1726659043824,-188.942496,0.00019178,2]
[338460599,1726659043833,-500.0,0.00019178,2]
[338460600,1726659043843,-500.0,0.00019178,2]
[338460601,1726659043852,-570.15,0.00019178,2]
[338460602,1726659043861,-912.11,0.00019178,2]
[338460603,1726659043870,-500.0,0.00019178,2]
[338460604,1726659043881,-500.0,0.00019178,2]
[338460605,1726659043890,-1153.87,0.00019178,2]
[338460606,1726659043899,-188.942496,0.00019178,2]
[338460607,1726659043908,-188.942496,0.00019178,2]
[338460608,1726659043918,-1991.54,0.00019178,2]
[338460609,1726659043927,-500.0,0.00019178,2]
[338460610,1726659043936,-500.0,0.00019178,2]
[338460611,1726659043946,-500.0,0.00019178,2]
[338460612,1726659043956,-1016.51,0.00019178,2]
[338460613,1726659043967,-247.6,0.00019178,2]
[338460614,1726659043978,-500.0,0.00019178,2]
[338460615,1726659043987,-205.875145,0.00019178,2]
[338460616,1726659043998,-205.875145,0.00019178,2]
[338460617,1726659044009,-874.2,0.00019178,2]
[338460618,1726659044019,-205.875145,0.00019178,2]
[338460619,1726659044031,-205.875145,0.00019178,2]
[338460621,1726659044041,-1333.34,0.00019178,2]
[338460622,1726659044051,-500.0,0.00019178,2]
[338460623,1726659044060,-500.0,0.00019178,2]
[338460624,1726659044069,-559.26,0.00019178,2]
[338460625,1726659044079,-514.86769866,0.00019178,2]
[338460626,1726659044089,-500.0,0.00019178,2]
[338460627,1726659044098,-500.0,0.00019178,2]
[338460628,1726659044107,-500.0,0.00019178,2]
[338460629,1726659044117,-1085.51,0.00019178,2]
[338460630,1726659044126,-500.0,0.00019178,2]
[338460631,1726659044135,-200.277512,0.00019178,2]
[338460632,1726659044145,-200.277512,0.00019178,2]
[338460633,1726659044154,-1058.87,0.00019178,2]
[338460634,1726659044164,-200.277512,0.00019178,2]
[338460635,1726659044174,-200.277512,0.00019178,2]
[338460636,1726659044184,-500.0,0.00019178,2]
[338460637,1726659044193,-500.0,0.00019178,2]
[338460638,1726659044205,-592.61,0.00019178,2]
[338460639,1726659044216,-500.0,0.00019178,2]
[338460640,1726659044227,-500.0,0.00019178,2]
[338460641,1726659044237,-500.0,0.00019178,2]
[338460642,1726659044247,-500.0,0.00019178,2]
[338460643,1726659044258,-500.0,0.00019178,2]
[338460644,1726659044268,-538.39,0.00019178,2]
[338460645,1726659044278,-878.38,0.00019178,2]
[338460646,1726659044287,-500.0,0.00019178,2]
[338460647,1726659044298,-500.0,0.00019178,2]
[338460648,1726659044308,-500.0,0.00019178,2]
[338460649,1726659044318,-500.0,0.00019178,2]
[338460650,1726659044484,-712.51,0.00019178,2]
[338460651,1726659044494,-500.0,0.00019178,2]
[338460652,1726659044504,-642.68,0.00019178,2]
[338460653,1726659044514,-500.0,0.00019178,2]
[338460654,1726659044523,-531.52,0.00019178,2]
[338460655,1726659044532,-500.0,0.00019178,2]
[338460656,1726659044542,-673.66,0.00019178,2]
[338460657,1726659044554,-1535.4,0.00019178,2]
[338460658,1726659044563,-3094.67,0.00019178,2]
[338460659,1726659044573,-656.67,0.00019178,2]
[338460660,1726659044582,-1581.28,0.00019178,2]
[338460661,1726659044592,-726.41,0.00019178,2]
[338460662,1726659044602,-500.0,0.00019178,2]
[338460663,1726659044611,-500.0,0.00019178,2]
[338460664,1726659044621,-500.0,0.00019178,2]
[338460665,1726659044632,-785.27,0.00019178,2]
[338460666,1726659044644,-500.0,0.00019178,2]
[338460667,1726659044656,-911.29,0.00019178,2]
[338460668,1726659044666,-500.0,0.00019178,2]
[338460669,1726659044676,-500.91,0.00019178,2]
[338460670,1726659044687,-500.0,0.00019178,2]
[338460671,1726659044698,-1899.85,0.00019178,2]
[338460672,1726659044708,-1054.17,0.00019178,2]
[338460673,1726659044717,-500.0,0.00019178,2]
[338460674,1726659044726,-500.0,0.00019178,2]
[338460675,1726659044737,-513.42,0.00019178,2]
[338460676,1726659044747,-1388.25,0.00019178,2]
[338460677,1726659044759,-500.0,0.00019178,2]
[338460678,1726659044770,-2068.72,0.00019178,2]
[338460679,1726659044782,-2260.46,0.00019178,2]
[338460680,1726659044793,-500.0,0.00019178,2]
[338460681,1726659044804,-500.0,0.00019178,2]
[338460682,1726659044813,-721.45,0.00019178,2]
[338460683,1726659044825,-934.75,0.00019178,2]
[338460684,1726659044836,-500.0,0.00019178,2]
[338460685,1726659044847,-500.0,0.00019178,2]
[338460686,1726659044858,-823.25,0.00019178,2]
[338460687,1726659044869,-998.42,0.00019178,2]
[338460688,1726659044881,-500.0,0.00019178,2]
[338460689,1726659044892,-1343.4,0.00019178,2]
[338460690,1726659044903,-500.0,0.00019178,2]
[338460691,1726659044913,-500.0,0.00019178,2]
[338460692,1726659044924,-204.572174,0.00019178,2]
[338460693,1726659044936,-500.0,0.00019178,2]